[Event "Titled Tuesday Blitz March 07 Early 2023"]
[White "Mayaud, Raphael"]
[Black "Korchmar, Vasiliy"]
[WhiteFideId "627151"]
[BlackFideId "24131750"]
[WhiteElo "2191"]
[BlackElo "2370"]
[Result "0-1"]
[Round "01"]
[TimeControl "180+2"]
[Date "2023.03.07"]
[WhiteClock "0:00:08"]
[BlackClock "0:00:16"]

1. d4 {[%clk 0:02:55]}  d5 {[%clk 0:02:59]} 2. Nf3 {[%clk 0:02:54]}  Nf6 {[%clk 0:02:58]} 3. e3 {[%clk 0:02:52]}  c6 {[%clk 0:02:53]} 4. Bd3 {[%clk 0:02:51]}  Bg4 {[%clk 0:02:52]} 5. O-O {[%clk 0:02:51]}  Nbd7 {[%clk 0:02:52]} 6. b3 {[%clk 0:02:44]}  e5 {[%clk 0:02:52]} 7. dxe5 {[%clk 0:02:43]}  Nxe5 {[%clk 0:02:52]} 8. Be2 {[%clk 0:02:42]}  Bd6 {[%clk 0:02:19]} 9. Bb2 {[%clk 0:02:41]}  Bxf3 {[%clk 0:01:56]} 10. Bxf3 {[%clk 0:02:40]}  O-O {[%clk 0:01:57]} 11. Nd2 {[%clk 0:02:33]}  Qe7 {[%clk 0:01:50]} 12. Be2 {[%clk 0:02:30]}  Rad8 {[%clk 0:01:49]} 13. Nf3 {[%clk 0:02:19]}  Ne4 {[%clk 0:01:49]} 14. Nxe5 {[%clk 0:02:12]}  Bxe5 {[%clk 0:01:49]} 15. Bxe5 {[%clk 0:02:12]}  Qxe5 {[%clk 0:01:50]} 16. Qd4 {[%clk 0:02:12]}  Qxd4 {[%clk 0:01:41]} 17. exd4 {[%clk 0:02:12]}  Rfe8 {[%clk 0:01:39]} 18. Bd3 {[%clk 0:02:05]}  Re6 {[%clk 0:01:35]} 19. f3 {[%clk 0:01:25]}  Nc3 {[%clk 0:01:31]} 20. Rfe1 {[%clk 0:00:56]}  Rde8 {[%clk 0:01:31]} 21. Rxe6 {[%clk 0:00:57]}  Rxe6 {[%clk 0:01:32]} 22. Kf2 {[%clk 0:00:48]}  b5 {[%clk 0:01:23]} 23. a4 {[%clk 0:00:45]}  b4 {[%clk 0:01:17]} 24. Re1 {[%clk 0:00:45]}  Rxe1 {[%clk 0:01:08]} 25. Kxe1 {[%clk 0:00:46]}  Kf8 {[%clk 0:01:08]} 26. Kd2 {[%clk 0:00:46]}  Ke7 {[%clk 0:01:07]} 27. h4 {[%clk 0:00:39]}  h6 {[%clk 0:01:01]} 28. g4 {[%clk 0:00:31]}  g5 {[%clk 0:01:00]} 29. hxg5 {[%clk 0:00:30]}  hxg5 {[%clk 0:01:01]} 30. Bf5 {[%clk 0:00:30]}  Kd6 {[%clk 0:01:00]} 31. Bc8 {[%clk 0:00:30]}  c5 {[%clk 0:00:48]} 32. dxc5+ {[%clk 0:00:30]}  Kxc5 {[%clk 0:00:49]} 33. Kd3 {[%clk 0:00:30]}  f6 {[%clk 0:00:46]} 34. Be6 {[%clk 0:00:28]}  a5 {[%clk 0:00:43]} 35. Bc8 {[%clk 0:00:26]}  Nd1 {[%clk 0:00:41]} 36. Ke2 {[%clk 0:00:23]}  Nc3+ {[%clk 0:00:42]} 37. Kd3 {[%clk 0:00:23]}  Na2 {[%clk 0:00:37]} 38. Bf5 {[%clk 0:00:16]}  Nc1+ {[%clk 0:00:34]} 39. Kd2 {[%clk 0:00:17]}  Na2 {[%clk 0:00:34]} 40. Kd3 {[%clk 0:00:16]}  Nc3 {[%clk 0:00:35]} 41. Be6 {[%clk 0:00:14]}  d4 {[%clk 0:00:30]} 42. Bf7 {[%clk 0:00:14]}  Nd5 {[%clk 0:00:29]} 43. Bxd5 {[%clk 0:00:09]}  Kxd5 {[%clk 0:00:30]} 44. Kd2 {[%clk 0:00:09]}  Ke5 {[%clk 0:00:26]} 45. Ke2 {[%clk 0:00:05]}  f5 {[%clk 0:00:15]} 46. gxf5 {[%clk 0:00:05]}  Kxf5 {[%clk 0:00:15]} 47. Kd3 {[%clk 0:00:05]}  Kf4 {[%clk 0:00:16]} 48. Kxd4 {[%clk 0:00:04]}  Kxf3 {[%clk 0:00:16]} 49. c3 {[%clk 0:00:05]}  bxc3 {[%clk 0:00:13]} 50. Kxc3 {[%clk 0:00:05]}  g4 {[%clk 0:00:14]} 51. b4 {[%clk 0:00:06]}  axb4+ {[%clk 0:00:14]} 52. Kxb4 {[%clk 0:00:06]}  g3 {[%clk 0:00:15]} 53. a5 {[%clk 0:00:07]}  g2 {[%clk 0:00:15]} 54. a6 {[%clk 0:00:08]}  g1=Q {[%clk 0:00:15]} 55. Kb5 {[%clk 0:00:08]}  Qa7 {[%clk 0:00:16]} 0-1


[Site "https://www.chess.com"]

[Event "Titled Tuesday Blitz March 07 Early 2023"]
[White "Hindermann, Felix"]
[Black "Aldokhin, Ivan"]
[WhiteFideId "1305212"]
[BlackFideId "24115720"]
[WhiteElo "2206"]
[BlackElo "2322"]
[Result "0-1"]
[Round "01"]
[TimeControl "180+2"]
[Date "2023.03.07"]
[WhiteClock "0:00:56"]
[BlackClock "0:00:15"]

1. e4 {[%clk 0:02:59]}  c5 {[%clk 0:02:19]} 2. c3 {[%clk 0:02:56]}  e6 {[%clk 0:02:19]} 3. d4 {[%clk 0:02:56]}  cxd4 {[%clk 0:02:15]} 4. cxd4 {[%clk 0:02:56]}  d5 {[%clk 0:02:16]} 5. e5 {[%clk 0:02:56]}  Nc6 {[%clk 0:02:14]} 6. Nf3 {[%clk 0:02:56]}  Nge7 {[%clk 0:02:04]} 7. Bd3 {[%clk 0:02:51]}  Nf5 {[%clk 0:02:04]} 8. Bxf5 {[%clk 0:02:49]}  exf5 {[%clk 0:02:04]} 9. Nc3 {[%clk 0:02:50]}  Be6 {[%clk 0:02:02]} 10. O-O {[%clk 0:02:49]}  Be7 {[%clk 0:02:02]} 11. Be3 {[%clk 0:02:46]}  g5 {[%clk 0:02:02]} 12. Ne1 {[%clk 0:02:31]}  f4 {[%clk 0:01:57]} 13. Bc1 {[%clk 0:02:30]}  Qb6 {[%clk 0:01:54]} 14. Nc2 {[%clk 0:02:28]}  Rd8 {[%clk 0:01:51]} 15. b4 {[%clk 0:02:23]}  Bf5 {[%clk 0:01:47]} 16. Na4 {[%clk 0:02:19]}  Qb5 {[%clk 0:01:37]} 17. Nc5 {[%clk 0:02:01]}  Bxc2 {[%clk 0:01:30]} 18. Qxc2 {[%clk 0:02:02]}  Nxd4 {[%clk 0:01:28]} 19. Qd3 {[%clk 0:01:57]}  Bxc5 {[%clk 0:01:13]} 20. Qxb5+ {[%clk 0:01:56]}  Nxb5 {[%clk 0:01:14]} 21. bxc5 {[%clk 0:01:57]}  Kd7 {[%clk 0:01:11]} 22. a4 {[%clk 0:01:54]}  Nd4 {[%clk 0:01:10]} 23. Bb2 {[%clk 0:01:54]}  Ne6 {[%clk 0:01:08]} 24. Rab1 {[%clk 0:01:40]}  Kc6 {[%clk 0:01:05]} 25. Bc3 {[%clk 0:01:40]}  d4 {[%clk 0:01:05]} 26. Ba5 {[%clk 0:01:40]}  Rd5 {[%clk 0:01:04]} 27. Rb5 {[%clk 0:01:33]}  Rxc5 {[%clk 0:00:53]} 28. Rfb1 {[%clk 0:01:33]}  b6 {[%clk 0:00:49]} 29. Bb4 {[%clk 0:01:26]}  Rxb5 {[%clk 0:00:45]} 30. axb5+ {[%clk 0:01:27]}  Kxb5 {[%clk 0:00:45]} 31. Kf1 {[%clk 0:01:25]}  Kc6 {[%clk 0:00:39]} 32. Ke2 {[%clk 0:01:25]}  Kd5 {[%clk 0:00:38]} 33. Bd6 {[%clk 0:01:20]}  Rc8 {[%clk 0:00:38]} 34. Rb5+ {[%clk 0:01:17]}  Ke4 {[%clk 0:00:34]} 35. f3+ {[%clk 0:01:16]}  Kf5 {[%clk 0:00:34]} 36. g4+ {[%clk 0:01:16]}  fxg3 {[%clk 0:00:33]} 37. hxg3 {[%clk 0:01:16]}  h5 {[%clk 0:00:32]} 38. Rb1 {[%clk 0:01:06]}  Rc2+ {[%clk 0:00:27]} 39. Kd3 {[%clk 0:01:07]}  Rc3+ {[%clk 0:00:27]} 40. Ke2 {[%clk 0:01:07]}  g4 {[%clk 0:00:19]} 41. fxg4+ {[%clk 0:01:06]}  hxg4 {[%clk 0:00:20]} 42. Rf1+ {[%clk 0:01:06]}  Rf3 {[%clk 0:00:20]} 43. Rh1 {[%clk 0:01:02]}  d3+ {[%clk 0:00:17]} 44. Kd2 {[%clk 0:01:02]}  Ke4 {[%clk 0:00:18]} 45. Re1+ {[%clk 0:00:59]}  Kd4 {[%clk 0:00:18]} 46. Ra1 {[%clk 0:00:58]}  Rf2+ {[%clk 0:00:18]} 47. Ke1 {[%clk 0:00:58]}  Ke3 {[%clk 0:00:18]} 48. Bb4 {[%clk 0:00:53]}  a5 {[%clk 0:00:18]} 49. Bc3 {[%clk 0:00:53]}  Ng5 {[%clk 0:00:18]} 50. Kd1 {[%clk 0:00:49]}  Rf1+ {[%clk 0:00:17]} 51. Be1 {[%clk 0:00:49]}  Nf3 {[%clk 0:00:18]} 52. Kc1 {[%clk 0:00:49]}  Rxe1+ {[%clk 0:00:17]} 53. Kb2 {[%clk 0:00:50]}  Rxa1 {[%clk 0:00:17]} 54. Kxa1 {[%clk 0:00:51]}  d2 {[%clk 0:00:18]} 55. Ka2 {[%clk 0:00:52]}  d1=Q {[%clk 0:00:18]} 56. e6 {[%clk 0:00:53]}  Qc2+ {[%clk 0:00:16]} 57. Ka3 {[%clk 0:00:53]}  Qc3+ {[%clk 0:00:15]} 58. Ka2 {[%clk 0:00:53]}  fxe6 {[%clk 0:00:14]} 59. Kb1 {[%clk 0:00:54]}  Qd2 {[%clk 0:00:14]} 60. Ka1 {[%clk 0:00:54]}  Kd3 {[%clk 0:00:14]} 61. Kb1 {[%clk 0:00:55]}  Kc3 {[%clk 0:00:15]} 62. Ka1 {[%clk 0:00:56]}  Qb2# {[%clk 0:00:15]} 0-1


[Site "https://www.chess.com"]

[Event "Titled Tuesday Blitz March 07 Early 2023"]
[White "Akhvlediani, Irakli"]
[Black "Andrews, Todd"]
[WhiteFideId "13601938"]
[BlackFideId "2012456"]
[WhiteElo "2268"]
[BlackElo "2381"]
[Result "0-1"]
[Round "01"]
[TimeControl "180+2"]
[Date "2023.03.07"]
[WhiteClock "0:00:05"]
[BlackClock "0:00:16"]

1. c4 {[%clk 0:02:54]}  e5 {[%clk 0:02:59]} 2. Nc3 {[%clk 0:02:53]}  Nc6 {[%clk 0:02:58]} 3. g3 {[%clk 0:02:54]}  f5 {[%clk 0:02:58]} 4. Bg2 {[%clk 0:02:55]}  Nf6 {[%clk 0:02:59]} 5. d3 {[%clk 0:02:54]}  Bb4 {[%clk 0:02:56]} 6. Nf3 {[%clk 0:02:54]}  d6 {[%clk 0:02:56]} 7. O-O {[%clk 0:02:54]}  Bxc3 {[%clk 0:02:56]} 8. bxc3 {[%clk 0:02:54]}  O-O {[%clk 0:02:57]} 9. Nd2 {[%clk 0:02:51]}  Qe8 {[%clk 0:02:55]} 10. c5 {[%clk 0:02:46]}  Qh5 {[%clk 0:02:48]} 11. cxd6 {[%clk 0:02:46]}  cxd6 {[%clk 0:02:47]} 12. Nf3 {[%clk 0:02:35]}  Kh8 {[%clk 0:02:35]} 13. Ba3 {[%clk 0:02:31]}  Rd8 {[%clk 0:02:31]} 14. d4 {[%clk 0:02:29]}  Be6 {[%clk 0:02:22]} 15. Rb1 {[%clk 0:02:23]}  Rab8 {[%clk 0:02:11]} 16. dxe5 {[%clk 0:02:11]}  dxe5 {[%clk 0:02:10]} 17. Qa4 {[%clk 0:02:11]}  e4 {[%clk 0:01:49]} 18. Nd4 {[%clk 0:02:12]}  Nxd4 {[%clk 0:01:48]} 19. cxd4 {[%clk 0:02:12]}  f4 {[%clk 0:01:34]} 20. Be7 {[%clk 0:01:53]}  Re8 {[%clk 0:01:03]} 21. Bxf6 {[%clk 0:01:51]}  gxf6 {[%clk 0:01:04]} 22. Rb5 {[%clk 0:00:54]}  Qxe2 {[%clk 0:00:46]} 23. Rxb7 {[%clk 0:00:54]}  f3 {[%clk 0:00:39]} 24. Rfb1 {[%clk 0:00:54]}  e3 {[%clk 0:00:34]} 25. Bf1 {[%clk 0:00:06]}  Qxf2+ {[%clk 0:00:32]} 26. Kh1 {[%clk 0:00:07]}  Bd5 {[%clk 0:00:17]} 27. Rxb8 {[%clk 0:00:05]}  Qg1+ {[%clk 0:00:16]} 0-1


[Site "https://www.chess.com"]

[Event "Titled Tuesday Blitz March 07 Early 2023"]
[White "Jovic, Stanoje"]
[Black "Pourramezanali, Amirreza"]
[WhiteFideId "905020"]
[BlackFideId "12511412"]
[WhiteElo "2236"]
[BlackElo "2382"]
[Result "1/2-1/2"]
[Round "01"]
[TimeControl "180+2"]
[Date "2023.03.07"]
[WhiteClock "0:00:08"]
[BlackClock "0:00:03"]

1. c4 {[%clk 0:03:00]}  c6 {[%clk 0:02:59]} 2. e4 {[%clk 0:03:00]}  d5 {[%clk 0:03:00]} 3. exd5 {[%clk 0:03:00]}  cxd5 {[%clk 0:03:00]} 4. cxd5 {[%clk 0:03:00]}  Nf6 {[%clk 0:03:01]} 5. Qa4+ {[%clk 0:03:00]}  Nbd7 {[%clk 0:03:00]} 6. Bc4 {[%clk 0:03:00]}  g6 {[%clk 0:03:00]} 7. d3 {[%clk 0:03:00]}  Bg7 {[%clk 0:03:01]} 8. Nc3 {[%clk 0:03:00]}  O-O {[%clk 0:03:01]} 9. Nf3 {[%clk 0:03:00]}  a6 {[%clk 0:03:02]} 10. Qa3 {[%clk 0:03:00]}  Rb8 {[%clk 0:03:00]} 11. Bf4 {[%clk 0:02:59]}  Ra8 {[%clk 0:02:52]} 12. O-O {[%clk 0:02:59]}  Re8 {[%clk 0:02:47]} 13. Rfe1 {[%clk 0:02:56]}  Bf8 {[%clk 0:02:46]} 14. d6 {[%clk 0:02:50]}  e6 {[%clk 0:02:40]} 15. d4 {[%clk 0:02:39]}  Nb6 {[%clk 0:02:37]} 16. b3 {[%clk 0:02:33]}  Bd7 {[%clk 0:02:26]} 17. Ne5 {[%clk 0:02:26]}  Bc6 {[%clk 0:02:26]} 18. Nxc6 {[%clk 0:02:24]}  bxc6 {[%clk 0:02:27]} 19. Na4 {[%clk 0:02:15]}  Nc8 {[%clk 0:02:18]} 20. Nc5 {[%clk 0:01:58]}  Nxd6 {[%clk 0:02:16]} 21. Qa4 {[%clk 0:01:53]}  Nxc4 {[%clk 0:02:08]} 22. Qxc4 {[%clk 0:01:51]}  Qd5 {[%clk 0:02:08]} 23. Be5 {[%clk 0:01:45]}  Be7 {[%clk 0:01:24]} 24. Rac1 {[%clk 0:01:40]}  a5 {[%clk 0:01:21]} 25. h3 {[%clk 0:01:36]}  Rec8 {[%clk 0:01:15]} 26. g4 {[%clk 0:01:30]}  Qxc4 {[%clk 0:01:12]} 27. bxc4 {[%clk 0:01:21]}  h5 {[%clk 0:01:07]} 28. f3 {[%clk 0:01:20]}  Nh7 {[%clk 0:01:04]} 29. Ne4 {[%clk 0:01:14]}  Rd8 {[%clk 0:00:56]} 30. Red1 {[%clk 0:01:09]}  hxg4 {[%clk 0:00:50]} 31. hxg4 {[%clk 0:01:08]}  f5 {[%clk 0:00:50]} 32. Nc5 {[%clk 0:01:02]}  Kf7 {[%clk 0:00:46]} 33. Rb1 {[%clk 0:00:56]}  Ng5 {[%clk 0:00:42]} 34. Kg2 {[%clk 0:00:55]}  Ra7 {[%clk 0:00:34]} 35. Kg3 {[%clk 0:00:50]}  Bxc5 {[%clk 0:00:31]} 36. dxc5 {[%clk 0:00:46]}  Rxd1 {[%clk 0:00:31]} 37. Rxd1 {[%clk 0:00:46]}  Rb7 {[%clk 0:00:31]} 38. Kf4 {[%clk 0:00:41]}  Nh7 {[%clk 0:00:28]} 39. g5 {[%clk 0:00:37]}  Nf8 {[%clk 0:00:25]} 40. Rd6 {[%clk 0:00:33]}  Rb4 {[%clk 0:00:18]} 41. Rxc6 {[%clk 0:00:32]}  Rxc4+ {[%clk 0:00:18]} 42. Kg3 {[%clk 0:00:32]}  Nd7 {[%clk 0:00:18]} 43. Rc7 {[%clk 0:00:31]}  Ke8 {[%clk 0:00:19]} 44. Bd6 {[%clk 0:00:30]}  e5 {[%clk 0:00:19]} 45. Rc8+ {[%clk 0:00:26]}  Kf7 {[%clk 0:00:19]} 46. Rd8 {[%clk 0:00:22]}  Ke6 {[%clk 0:00:18]} 47. Re8+ {[%clk 0:00:21]}  Kd5 {[%clk 0:00:18]} 48. Rg8 {[%clk 0:00:21]}  Rc3 {[%clk 0:00:08]} 49. Rxg6 {[%clk 0:00:19]}  e4 {[%clk 0:00:08]} 50. Rg8 {[%clk 0:00:16]}  Rxf3+ {[%clk 0:00:09]} 51. Kg2 {[%clk 0:00:16]}  Ra3 {[%clk 0:00:03]} 52. g6 {[%clk 0:00:16]}  Rxa2+ {[%clk 0:00:03]} 53. Kh3 {[%clk 0:00:16]}  Nf6 {[%clk 0:00:04]} 54. Rf8 {[%clk 0:00:15]}  Nh5 {[%clk 0:00:03]} 55. Rh8 {[%clk 0:00:14]}  Ng7 {[%clk 0:00:03]} 56. Rh7 {[%clk 0:00:13]}  Ne6 {[%clk 0:00:04]} 57. g7 {[%clk 0:00:11]}  Nxg7 {[%clk 0:00:03]} 58. Rxg7 {[%clk 0:00:12]}  e3 {[%clk 0:00:03]} 59. Rf7 {[%clk 0:00:11]}  Ke4 {[%clk 0:00:03]} 60. c6 {[%clk 0:00:10]}  Rc2 {[%clk 0:00:03]} 61. c7 {[%clk 0:00:10]}  e2 {[%clk 0:00:04]} 62. Re7+ {[%clk 0:00:09]}  Kf3 {[%clk 0:00:04]} 63. Kh4 {[%clk 0:00:08]}  Rc6 {[%clk 0:00:04]} 64. Kg5 {[%clk 0:00:08]}  f4 {[%clk 0:00:04]} 65. Bxf4 {[%clk 0:00:07]}  a4 {[%clk 0:00:04]} 66. Bd2 {[%clk 0:00:06]}  a3 {[%clk 0:00:04]} 67. Re3+ {[%clk 0:00:06]}  Kf2 {[%clk 0:00:05]} 68. Rxa3 {[%clk 0:00:06]}  Rxc7 {[%clk 0:00:05]} 69. Be3+ {[%clk 0:00:06]}  Kf1 {[%clk 0:00:04]} 70. Bd2 {[%clk 0:00:06]}  Rd7 {[%clk 0:00:05]} 71. Bb4 {[%clk 0:00:06]}  Rd4 {[%clk 0:00:05]} 72. Ra1+ {[%clk 0:00:06]}  Kf2 {[%clk 0:00:05]} 73. Bc5 {[%clk 0:00:07]}  e1=Q {[%clk 0:00:02]} 74. Bxd4+ {[%clk 0:00:08]}  Ke2 {[%clk 0:00:02]} 75. Rxe1+ {[%clk 0:00:08]}  Kxe1 {[%clk 0:00:03]} 1/2-1/2


[Site "https://www.chess.com"]

[Event "Titled Tuesday Blitz March 07 Early 2023"]
[White "Kowalczyk, Pawel"]
[Black "Girsh, Daniel"]
[WhiteFideId "1130641"]
[BlackFideId "30949190"]
[WhiteElo "2324"]
[BlackElo "2075"]
[Result "1-0"]
[Round "01"]
[TimeControl "180+2"]
[Date "2023.03.07"]
[WhiteClock "0:00:30"]
[BlackClock "0:00:10"]

1. e4 {[%clk 0:03:00]}  c5 {[%clk 0:03:00]} 2. Ne2 {[%clk 0:03:00]}  d6 {[%clk 0:03:00]} 3. g3 {[%clk 0:03:00]}  Nc6 {[%clk 0:02:59]} 4. Bg2 {[%clk 0:03:00]}  g6 {[%clk 0:02:59]} 5. O-O {[%clk 0:03:01]}  Bg7 {[%clk 0:03:00]} 6. c3 {[%clk 0:03:02]}  Nf6 {[%clk 0:02:59]} 7. d4 {[%clk 0:03:01]}  O-O {[%clk 0:02:56]} 8. h3 {[%clk 0:03:01]}  Bd7 {[%clk 0:02:41]} 9. Be3 {[%clk 0:03:00]}  cxd4 {[%clk 0:02:38]} 10. cxd4 {[%clk 0:03:00]}  Rc8 {[%clk 0:02:39]} 11. Nbc3 {[%clk 0:02:59]}  a6 {[%clk 0:02:30]} 12. f4 {[%clk 0:02:59]}  e5 {[%clk 0:02:19]} 13. fxe5 {[%clk 0:02:49]}  dxe5 {[%clk 0:02:20]} 14. d5 {[%clk 0:02:50]}  Na5 {[%clk 0:02:20]} 15. b3 {[%clk 0:02:50]}  Ne8 {[%clk 0:02:15]} 16. Qd2 {[%clk 0:02:48]}  Nd6 {[%clk 0:02:14]} 17. g4 {[%clk 0:02:44]}  f5 {[%clk 0:02:07]} 18. gxf5 {[%clk 0:02:30]}  gxf5 {[%clk 0:02:05]} 19. exf5 {[%clk 0:02:30]}  Nxf5 {[%clk 0:02:04]} 20. Bg5 {[%clk 0:02:29]}  Qb6+ {[%clk 0:02:04]} 21. Kh2 {[%clk 0:02:28]}  h6 {[%clk 0:01:59]} 22. Rxf5 {[%clk 0:02:07]}  Rxf5 {[%clk 0:01:57]} 23. Be3 {[%clk 0:02:08]}  Qb4 {[%clk 0:01:44]} 24. Bxh6 {[%clk 0:01:57]}  Rh5 {[%clk 0:01:25]} 25. Bxg7 {[%clk 0:01:55]}  Kxg7 {[%clk 0:01:26]} 26. Rg1 {[%clk 0:01:54]}  Kh8 {[%clk 0:01:21]} 27. Qe3 {[%clk 0:01:49]}  Rg8 {[%clk 0:01:18]} 28. Ng3 {[%clk 0:01:45]}  Rhg5 {[%clk 0:01:10]} 29. Nce4 {[%clk 0:01:44]}  R5g6 {[%clk 0:01:05]} 30. Qf3 {[%clk 0:01:38]}  Rh6 {[%clk 0:00:53]} 31. Qf7 {[%clk 0:01:26]}  Be8 {[%clk 0:00:53]} 32. Qf5 {[%clk 0:01:24]}  Qe7 {[%clk 0:00:49]} 33. d6 {[%clk 0:01:23]}  Qe6 {[%clk 0:00:47]} 34. Qxe6 {[%clk 0:01:21]}  Rxe6 {[%clk 0:00:47]} 35. Bf3 {[%clk 0:01:21]}  Rh6 {[%clk 0:00:40]} 36. Rc1 {[%clk 0:01:12]}  Nc6 {[%clk 0:00:38]} 37. Nc5 {[%clk 0:01:09]}  Rxd6 {[%clk 0:00:37]} 38. Nge4 {[%clk 0:01:08]}  Rh6 {[%clk 0:00:32]} 39. Nxb7 {[%clk 0:01:02]}  Nd4 {[%clk 0:00:31]} 40. Bg2 {[%clk 0:01:02]}  Bc6 {[%clk 0:00:29]} 41. Nbc5 {[%clk 0:00:58]}  Ne2 {[%clk 0:00:25]} 42. Rd1 {[%clk 0:00:48]}  Nf4 {[%clk 0:00:25]} 43. Bf1 {[%clk 0:00:49]}  Rhg6 {[%clk 0:00:19]} 44. Rd6 {[%clk 0:00:45]}  Rxd6 {[%clk 0:00:19]} 45. Nxd6 {[%clk 0:00:46]}  Kg7 {[%clk 0:00:16]} 46. Kg3 {[%clk 0:00:43]}  Kf6+ {[%clk 0:00:15]} 47. Kf2 {[%clk 0:00:43]}  Nd5 {[%clk 0:00:12]} 48. Nde4+ {[%clk 0:00:42]}  Kf5 {[%clk 0:00:12]} 49. Ng3+ {[%clk 0:00:41]}  Kf6 {[%clk 0:00:11]} 50. Bxa6 {[%clk 0:00:39]}  Nf4 {[%clk 0:00:10]} 51. Nge4+ {[%clk 0:00:38]}  Ke7 {[%clk 0:00:10]} 52. Bf1 {[%clk 0:00:37]}  Bxe4 {[%clk 0:00:09]} 53. Nxe4 {[%clk 0:00:37]}  Rc8 {[%clk 0:00:09]} 54. Ke3 {[%clk 0:00:30]}  Rc3+ {[%clk 0:00:10]} 55. Nxc3 {[%clk 0:00:30]} 1-0


[Site "https://www.chess.com"]

[Event "Titled Tuesday Blitz March 07 Early 2023"]
[White "Sarkar, Justin"]
[Black "Kumaran, B"]
[WhiteFideId "2010011"]
[BlackFideId "5038472"]
[WhiteElo "2189"]
[BlackElo "2198"]
[Result "1/2-1/2"]
[Round "01"]
[TimeControl "180+2"]
[Date "2023.03.07"]
[WhiteClock "0:00:04"]
[BlackClock "0:00:48"]

1. e4 {[%clk 0:02:46]}  c5 {[%clk 0:02:59]} 2. Nf3 {[%clk 0:02:46]}  Nc6 {[%clk 0:02:59]} 3. d4 {[%clk 0:02:38]}  cxd4 {[%clk 0:02:59]} 4. Nxd4 {[%clk 0:02:38]}  e5 {[%clk 0:03:00]} 5. Nb5 {[%clk 0:02:36]}  Nf6 {[%clk 0:03:00]} 6. Bg5 {[%clk 0:02:25]}  a6 {[%clk 0:02:51]} 7. Bxf6 {[%clk 0:02:18]}  gxf6 {[%clk 0:02:50]} 8. Nd6+ {[%clk 0:02:08]}  Bxd6 {[%clk 0:02:50]} 9. Qxd6 {[%clk 0:02:08]}  Qe7 {[%clk 0:02:50]} 10. Qd2 {[%clk 0:02:05]}  d6 {[%clk 0:02:40]} 11. Nc3 {[%clk 0:02:03]}  Be6 {[%clk 0:02:38]} 12. f4 {[%clk 0:01:57]}  f5 {[%clk 0:02:33]} 13. exf5 {[%clk 0:01:50]}  Bxf5 {[%clk 0:02:32]} 14. Nd5 {[%clk 0:01:49]}  Qd8 {[%clk 0:02:31]} 15. O-O-O {[%clk 0:01:33]}  Rc8 {[%clk 0:02:23]} 16. c3 {[%clk 0:01:25]}  Nd4 {[%clk 0:02:02]} 17. Bd3 {[%clk 0:01:05]}  Bxd3 {[%clk 0:01:55]} 18. Qxd3 {[%clk 0:01:04]}  Qa5 {[%clk 0:01:56]} 19. Nf6+ {[%clk 0:00:50]}  Ke7 {[%clk 0:01:55]} 20. Kb1 {[%clk 0:00:48]}  Kxf6 {[%clk 0:01:43]} 21. fxe5+ {[%clk 0:00:37]}  dxe5 {[%clk 0:01:42]} 22. cxd4 {[%clk 0:00:35]}  Rhe8 {[%clk 0:01:25]} 23. Qxh7 {[%clk 0:00:31]}  Rf8 {[%clk 0:01:08]} 24. dxe5+ {[%clk 0:00:21]}  Ke7 {[%clk 0:01:07]} 25. e6 {[%clk 0:00:17]}  Qg5 {[%clk 0:00:59]} 26. exf7 {[%clk 0:00:11]}  Rxf7 {[%clk 0:00:57]} 27. Rhe1+ {[%clk 0:00:06]}  Kf8 {[%clk 0:00:55]} 28. Qh8+ {[%clk 0:00:06]}  Qg8 {[%clk 0:00:55]} 29. Qh6+ {[%clk 0:00:04]}  Qg7 {[%clk 0:00:55]} 30. Qxg7+ {[%clk 0:00:02]}  Kxg7 {[%clk 0:00:54]} 31. g3 {[%clk 0:00:02]}  Rf2 {[%clk 0:00:53]} 32. Re7+ {[%clk 0:00:02]}  Kg6 {[%clk 0:00:53]} 33. Rxb7 {[%clk 0:00:02]}  Rcc2 {[%clk 0:00:53]} 34. a4 {[%clk 0:00:02]}  Rxh2 {[%clk 0:00:52]} 35. Rc1 {[%clk 0:00:02]}  Rcg2 {[%clk 0:00:51]} 36. Rc6+ {[%clk 0:00:02]}  Kf5 {[%clk 0:00:51]} 37. Rxa6 {[%clk 0:00:02]}  Rxg3 {[%clk 0:00:51]} 38. Ka2 {[%clk 0:00:02]}  Ke5 {[%clk 0:00:51]} 39. a5 {[%clk 0:00:02]}  Rg4 {[%clk 0:00:50]} 40. Ra8 {[%clk 0:00:01]}  Ra4+ {[%clk 0:00:50]} 41. Kb3 {[%clk 0:00:01]}  Rhh4 {[%clk 0:00:50]} 42. a6 {[%clk 0:00:01]}  Ra5 {[%clk 0:00:44]} 43. a7 {[%clk 0:00:01]}  Rha4 {[%clk 0:00:44]} 44. Re8+ {[%clk 0:00:01]}  Kd6 {[%clk 0:00:44]} 45. Rd8+ {[%clk 0:00:01]}  Kc6 {[%clk 0:00:44]} 46. a8=Q {[%clk 0:00:01]}  Rxa8 {[%clk 0:00:44]} 47. Rxa8 {[%clk 0:00:01]}  Rxa8 {[%clk 0:00:45]} 48. Rb4 {[%clk 0:00:02]}  Rg8 {[%clk 0:00:45]} 49. Rc4+ {[%clk 0:00:02]}  Kb6 {[%clk 0:00:45]} 50. Rb4+ {[%clk 0:00:03]}  Kc6 {[%clk 0:00:46]} 51. Rc4+ {[%clk 0:00:03]}  Kb6 {[%clk 0:00:46]} 52. Rb4+ {[%clk 0:00:03]}  Kc5 {[%clk 0:00:47]} 53. Rc4+ {[%clk 0:00:04]}  Kb5 {[%clk 0:00:47]} 54. Rb4+ {[%clk 0:00:04]}  Kc6 {[%clk 0:00:48]} 1/2-1/2


[Site "https://www.chess.com"]

[Event "Titled Tuesday Blitz March 07 Early 2023"]
[White "Matinian, Nikita"]
[Black "Vasques, Antonio Pedro Freixial"]
[WhiteFideId "24129100"]
[BlackFideId "1908332"]
[WhiteElo "2422"]
[BlackElo "2212"]
[Result "1-0"]
[Round "01"]
[TimeControl "180+2"]
[Date "2023.03.07"]
[WhiteClock "0:00:46"]
[BlackClock "0:00:05"]

1. e4 {[%clk 0:02:57]}  c5 {[%clk 0:02:53]} 2. Nf3 {[%clk 0:02:57]}  Nc6 {[%clk 0:02:53]} 3. Bb5 {[%clk 0:02:57]}  g6 {[%clk 0:02:52]} 4. Bxc6 {[%clk 0:02:55]}  dxc6 {[%clk 0:02:53]} 5. d3 {[%clk 0:02:53]}  Bg7 {[%clk 0:02:53]} 6. h3 {[%clk 0:02:53]}  Nf6 {[%clk 0:02:52]} 7. Nc3 {[%clk 0:02:53]}  Nd7 {[%clk 0:02:50]} 8. Be3 {[%clk 0:02:50]}  e5 {[%clk 0:02:45]} 9. Qd2 {[%clk 0:02:50]}  h6 {[%clk 0:02:45]} 10. O-O {[%clk 0:02:49]}  b6 {[%clk 0:02:43]} 11. Nh2 {[%clk 0:02:49]}  Nf8 {[%clk 0:02:41]} 12. f4 {[%clk 0:02:49]}  exf4 {[%clk 0:02:41]} 13. Rxf4 {[%clk 0:02:50]}  Ne6 {[%clk 0:02:41]} 14. Rf2 {[%clk 0:02:50]}  Nd4 {[%clk 0:02:30]} 15. Raf1 {[%clk 0:02:47]}  Be6 {[%clk 0:02:19]} 16. a4 {[%clk 0:02:47]}  Qd7 {[%clk 0:02:06]} 17. a5 {[%clk 0:02:46]}  O-O-O {[%clk 0:02:06]} 18. axb6 {[%clk 0:02:30]}  axb6 {[%clk 0:02:07]} 19. Na4 {[%clk 0:02:31]}  Kb7 {[%clk 0:02:01]} 20. Ng4 {[%clk 0:02:29]}  h5 {[%clk 0:01:20]} 21. Nf6 {[%clk 0:02:28]}  Bxf6 {[%clk 0:01:13]} 22. Rxf6 {[%clk 0:02:29]}  Qd6 {[%clk 0:00:50]} 23. b3 {[%clk 0:01:42]}  Qe5 {[%clk 0:00:44]} 24. Rxf7+ {[%clk 0:01:36]}  Bxf7 {[%clk 0:00:34]} 25. Rxf7+ {[%clk 0:01:37]}  Ka6 {[%clk 0:00:35]} 26. Qf2 {[%clk 0:01:14]}  g5 {[%clk 0:00:25]} 27. Qf1 {[%clk 0:01:09]}  Nxc2 {[%clk 0:00:22]} 28. d4+ {[%clk 0:01:09]}  b5 {[%clk 0:00:18]} 29. dxe5 {[%clk 0:01:07]}  Nxe3 {[%clk 0:00:19]} 30. Qe2 {[%clk 0:00:57]}  Rd1+ {[%clk 0:00:07]} 31. Kh2 {[%clk 0:00:56]}  g4 {[%clk 0:00:06]} 32. Nxc5+ {[%clk 0:00:55]}  Kb6 {[%clk 0:00:06]} 33. Rb7+ {[%clk 0:00:55]}  Kxc5 {[%clk 0:00:06]} 34. Qxe3+ {[%clk 0:00:55]}  Kb4 {[%clk 0:00:07]} 35. e6 {[%clk 0:00:46]}  h4 {[%clk 0:00:05]} 36. hxg4 {[%clk 0:00:46]} 1-0


[Site "https://www.chess.com"]